fUSD/lending_fUSD_20241221
["ID","MTS","AMOUNT","RATE_DAILY","PERIOD"]
[346189996,1734769873331,-661.33,0.00020268,2]
[346189997,1734769873340,-526.74,0.00020268,2]
[346189998,1734769873349,-500.0,0.00020268,2]
[346189999,1734769873359,-497.23316734,0.00020268,2]
[346190000,1734769873545,-842.34,0.00020268,2]
[346190001,1734769873571,-506.9939852,0.00020268,2]
[346190002,1734769873582,-757.69,0.00020268,2]
[346190003,1734769873591,-500.0,0.00020268,2]
[346190004,1734769873601,-542.57059848,0.00020268,2]
[346190005,1734769873610,-500.0,0.00020268,2]
[346190006,1734769873620,-500.0,0.00020268,2]
[346190007,1734769873629,-585.39,0.00020268,2]
[346190008,1734769873638,-500.0,0.00020268,2]
[346190009,1734769873648,-151.0,0.00020268,2]
[346190010,1734769873658,-636.28,0.00020268,2]
[346190011,1734769873668,-151.0,0.00020268,2]
[346190012,1734769873678,-223.317345,0.00020268,2]
[346190013,1734769873688,-151.0,0.00020268,2]
[346190014,1734769873698,-890.26,0.00020268,2]
[346190015,1734769873708,-223.317345,0.00020268,2]
[346190016,1734769873719,-534.84,0.00020268,2]
[346190017,1734769873729,-151.0,0.00020268,2]
[346190018,1734769873738,-500.0,0.00020268,2]
[346190019,1734769873748,-151.0,0.00020268,2]
[346190020,1734769873758,-151.0,0.00020268,2]
[346190021,1734769873773,-932.08,0.00020268,2]
[346190022,1734769873783,-1831.761634,0.00020268,2]
[346190023,1734769873795,-181.407563,0.00020268,2]
[346190024,1734769873804,-500.0,0.00020268,2]
[346190025,1734769873814,-1291.001743,0.00020268,2]
[346190026,1734769873824,-1134.01,0.00020268,2]
[346190027,1734769873833,-1291.001743,0.00020268,2]
[346190028,1734769873842,-600.68,0.00020268,2]
[346190029,1734769873852,-855.23,0.00020268,2]
[346190030,1734769873861,-1029.74,0.00020268,2]
[346190031,1734769873870,-500.0,0.00020268,2]
[346190032,1734769873879,-1143.08,0.00020268,2]
[346190033,1734769873888,-500.0,0.00020268,2]
[346190034,1734769873898,-1431.58,0.00020268,2]
[346190035,1734769873908,-1062.77,0.00020268,2]
[346190036,1734769873917,-500.0,0.00020268,2]
[346190037,1734769873927,-955.25,0.00020268,2]
[346190038,1734769873936,-1134.38,0.00020268,2]
[346190039,1734769873946,-762.27,0.00020268,2]
[346190040,1734769873956,-759.77,0.00020268,2]
[346190041,1734769873965,-852.61,0.00020268,2]
[346190042,1734769873974,-500.0,0.00020268,2]
[346190043,1734769873984,-1483.74,0.00020268,2]
[346190044,1734769873993,-666.82,0.00020268,2]
[346190045,1734769874003,-500.0,0.00020268,2]
[346190046,1734769874013,-926.1,0.00020268,2]
[346190047,1734769874024,-500.0,0.00020268,2]
[346190048,1734769874034,-617.66,0.00020268,2]
[346190049,1734769874044,-783.6,0.00020268,2]
[346190050,1734769874057,-1665.688369,0.00020268,2]
[346190051,1734769874067,-500.0,0.00020268,2]
[346190052,1734769874077,-1665.688369,0.00020268,2]
[346190053,1734769874087,-982.44,0.00020268,2]
[346190054,1734769874097,-1160.56,0.00020268,2]
[346190055,1734769874106,-500.0,0.00020268,2]
[346190056,1734769874116,-500.0,0.00020268,2]
[346190057,1734769874126,-531.21,0.00020268,2]
[346190058,1734769874136,-2006.63,0.00020273,2]
[346190059,1734769874145,-500.0,0.00020273,2]
[346190060,1734769874154,-500.0,0.00020273,2]
[346190061,1734769874163,-2236.16,0.00020273,2]
[346190062,1734769874173,-1041.22,0.00020273,2]
[346190063,1734769874182,-1756.06,0.00020273,2]
[346190064,1734769874191,-500.0,0.00020273,2]
[346190065,1734769874201,-500.0,0.00020273,2]
[346190066,1734769874210,-3286.21,0.00020273,2]
[346190067,1734769874219,-3384.13,0.00020273,2]
[346190068,1734769874229,-3504.58,0.00020273,2]
[346190069,1734769874238,-1682.69,0.00020273,2]
[346190070,1734769874248,-500.0,0.00020273,2]
[346190071,1734769874258,-4268.95,0.00020273,2]
[346190072,1734769874270,-1837.3,0.00020273,2]
[346190073,1734769874280,-500.0,0.00020273,2]
[346190074,1734769874289,-1195.99,0.00020273,2]
[346190075,1734769874299,-1493.08,0.00020273,2]
[346190076,1734769874308,-2337.63,0.00020273,2]
[346190077,1734769874317,-30824.23,0.00020273,2]
[346190078,1734769874326,-1086.39,0.00020273,2]
[346190079,1734769874336,-500.0,0.00020273,2]
[346190080,1734769874345,-1126.87,0.00020273,2]
[346190081,1734769874355,-1124.1,0.00020273,2]
[346190082,1734769874365,-1271.09,0.00020273,2]
[346190083,1734769874375,-500.0,0.00020273,2]
[346190084,1734769874384,-615.26,0.00020273,2]
[346190085,1734769874393,-3000.0,0.0002028,2]
[346190086,1734769874403,-1000.0,0.00020289,2]
[346190087,1734769874413,-500.0,0.00020294,2]
[346190088,1734769874422,-500.0,0.00020294,2]
[346190089,1734769874431,-500.0,0.00020294,2]
[346190090,1734769874441,-500.0,0.00020294,2]
[346190091,1734769874450,-500.0,0.00020294,2]
[346190092,1734769874460,-500.0,0.00020294,2]
[346190093,1734769874469,-670.15,0.00020295,2]
[346190094,1734769874479,-2498.82,0.00020295,2]
[346190095,1734769874488,-534.2,0.00020295,2]
[346190096,1734769874497,-989.16,0.00020295,2]
[346190097,1734769874507,-1704.38,0.00020295,2]
[346190098,1734769874517,-155.072584,0.00020295,2]
[346190099,1734769874525,-1850.446606,0.00020295,2]
[346190100,1734769874534,-1732.72,0.00020295,2]
[346190101,1734769874543,-500.0,0.00020295,2]
[346190102,1734769874552,-1409.43,0.00020295,2]
[346190103,1734769874562,-2295.414532,0.00020295,2]
[346190104,1734769874571,-2264.0,0.00020295,2]
[346190105,1734769874581,-788.06,0.00020295,2]
[346190106,1734769874591,-624.58,0.00020295,2]
[346190107,1734769874602,-2855.29,0.00020295,2]
[346190108,1734769874611,-500.0,0.00020295,2]
[346190109,1734769874621,-1040.51,0.00020295,2]
[346190110,1734769874630,-500.0,0.00020295,2]
[346190111,1734769874639,-151.0,0.00020295,2]
[346190112,1734769874649,-151.0,0.00020295,2]
[346190113,1734769874658,-151.0,0.00020295,2]
[346190114,1734769874667,-2075.7,0.00020295,2]
[346190115,1734769874677,-1269.52,0.00020295,2]
[346190116,1734769874686,-7720.01,0.00020295,2]
[346190117,1734769874696,-1581.9,0.00020295,2]
[346190118,1734769874705,-151.0,0.00020295,2]
[346190119,1734769874716,-1508.43,0.00020295,2]
[346190120,1734769874725,-500.0,0.00020295,2]
[346190121,1734769874735,-1248.42,0.00020295,2]
[346190122,1734769874745,-4712.38,0.00020295,2]
[346190123,1734769874755,-7848.69,0.00020295,2]
[346190124,1734769874765,-151.0,0.00020295,2]
[346190125,1734769874777,-2305.0,0.00020295,2]
[346190126,1734769874786,-151.0,0.00020295,2]
[346190127,1734769874796,-500.0,0.00020295,2]
[346190128,1734769874806,-500.0,0.00020295,2]
[346190129,1734769874816,-500.0,0.00020295,2]
[346190130,1734769874825,-500.0,0.00020295,2]
[346190131,1734769874834,-8230.89,0.00020295,2]
[346190132,1734769874845,-1817.88,0.00020295,2]
[346190133,1734769874854,-150.0,0.00020299,4]
[346190134,1734769874863,-200.0,0.000203,2]
[346190135,1734769874873,-200.0,0.000203,2]
[346190136,1734769874882,-42645.34083393,0.000203,2]
[346190137,1734769874893,-155.0,0.00020333,30]
[346190138,1734769874902,-150.0,0.0002038,4]
[346190139,1734769874911,-1006.76,0.00020395,2]
[346190140,1734769874921,-1107.72,0.00020395,2]
[346190141,1734769874930,-500.0,0.00020395,2]
[346190142,1734769874940,-500.0,0.00020395,2]
[346190143,1734769874961,-500.0,0.00020395,2]
[346190144,1734769874977,-500.0,0.00020395,2]
[346190145,1734769874993,-963.91,0.00020395,2]
[346190146,1734769875011,-500.0,0.00020395,2]
[346190147,1734769875032,-500.0,0.00020395,2]
[346190148,1734769875050,-899.8,0.00020395,2]
[346190149,1734769875066,-550.76,0.00020395,2]
[346190150,1734769875083,-786.66,0.00020395,2]
[346190151,1734769875101,-581.7,0.00020395,2]
[346190152,1734769875117,-531.56,0.00020395,2]
[346190153,1734769875137,-500.0,0.00020395,2]
[346190154,1734769875153,-500.0,0.00020395,2]
[346190155,1734769875169,-500.0,0.00020395,2]
[346190156,1734769875186,-500.0,0.00020395,2]
[346190157,1734769875200,-500.0,0.00020395,2]
[346190158,1734769875212,-817.02,0.00020395,2]
[346190159,1734769875231,-500.0,0.00020395,2]
[346190160,1734769875242,-500.0,0.00020395,2]
[346190161,1734769875257,-457.17897684,0.00020395,2]
[346190162,1734769875273,-986.87,0.00020395,2]
[346190163,1734769875285,-500.0,0.00020395,2]
[346190164,1734769875300,-908.9,0.00020395,2]
[346190165,1734769875313,-1018.49,0.00020395,2]
[346190166,1734769875327,-1079.48,0.00020395,2]
[346190167,1734769875340,-500.0,0.00020395,2]
[346190168,1734769875353,-500.0,0.00020395,2]
[346190169,1734769875366,-1322.87,0.00020395,2]
[346190170,1734769875380,-500.0,0.00020395,2]
[346190171,1734769875394,-500.0,0.00020395,2]
[346190172,1734769875408,-500.0,0.00020395,2]
[346190173,1734769875422,-1111.98,0.00020395,2]
[346190174,1734769875440,-1463.24,0.00020395,2]
[346190175,1734769875454,-500.0,0.00020395,2]
[346190176,1734769875467,-1272.79,0.00020395,2]
[346190177,1734769875481,-653.5,0.00020395,2]
[346190178,1734769875494,-1142.97,0.00020395,2]
[346190179,1734769875508,-500.0,0.00020395,2]
[346190180,1734769875523,-1214.5,0.00020395,2]
[346190181,1734769875537,-693.93,0.00020395,2]
[346190182,1734769875551,-500.0,0.00020395,2]
[346190183,1734769875564,-500.0,0.00020395,2]
[346190184,1734769875577,-500.0,0.00020395,2]
[346190185,1734769875590,-500.0,0.00020395,2]
[346190186,1734769875604,-535.74,0.00020395,2]
[346190187,1734769875617,-866.47,0.00020395,2]
[346190188,1734769875632,-500.0,0.00020395,2]
[346190189,1734769875646,-500.0,0.00020395,2]
[346190190,1734769875660,-1062.63,0.00020395,2]
[346190191,1734769875673,-500.0,0.00020395,2]
[346190192,1734769875687,-162.562606,0.00020395,2]
[346190193,1734769875700,-162.562606,0.00020395,2]
[346190194,1734769875713,-365.16017332,0.00020395,2]
[346190195,1734769875726,-771.8,0.00020395,2]
[346190196,1734769875739,-500.0,0.00020395,2]
[346190197,1734769875753,-500.0,0.00020395,2]
[346190198,1734769875766,-500.0,0.00020395,2]
[346190199,1734769875780,-500.0,0.00020395,2]
[346190200,1734769875794,-594.86,0.00020395,2]
[346190201,1734769875807,-1067.07,0.00020395,2]
[346190202,1734769875821,-500.0,0.00020395,2]
[346190203,1734769875836,-521.59,0.00020395,2]
[346190204,1734769875849,-500.0,0.00020395,2]
[346190205,1734769875862,-1968.56,0.00020395,2]
[346190206,1734769875875,-897.44,0.00020395,2]
[346190207,1734769875888,-1678.37,0.00020395,2]
[346190208,1734769875902,-743.27,0.00020395,2]
[346190209,1734769875914,-818.84367,0.00020395,2]
[346190210,1734769875928,-1183.83,0.00020395,2]
[346190211,1734769875941,-1115.72,0.00020395,2]
[346190212,1734769875955,-637.53,0.00020395,2]
[346190213,1734769875968,-818.84367,0.00020395,2]
[346190214,1734769875981,-151.0,0.00020395,2]
[346190215,1734769875995,-500.0,0.00020395,2]
[346190216,1734769876007,-546.544357,0.00020395,2]
[346190217,1734769876022,-694.28,0.00020395,2]
[346190218,1734769876040,-1132.35,0.00020395,2]
[346190219,1734769876054,-720.98,0.00020395,2]
[346190220,1734769876066,-546.544357,0.00020395,2]
[346190221,1734769876080,-151.0,0.00020395,2]
[346190222,1734769876094,-754.31,0.00020395,2]
[346190223,1734769876107,-8621.90081,0.00020395,2]
[346190224,1734769876121,-8621.90081,0.00020395,2]
[346190225,1734769876134,-189.290281,0.00020395,2]
[346190226,1734769876147,-189.290281,0.00020395,2]
[346190227,1734769876160,-224.57269,0.00020395,2]
[346190228,1734769876172,-1056.77,0.00020395,2]
[346190229,1734769876186,-1699.2,0.00020395,2]
[346190230,1734769876198,-958.54,0.00020395,2]
[346190231,1734769876212,-152.365062,0.00020395,2]
[346190232,1734769876224,-725.66,0.00020395,2]
[346190233,1734769876237,-152.365062,0.00020395,2]
[346190234,1734769876249,-1303.37,0.00020395,2]
[346190235,1734769876262,-1519.2,0.00020395,2]
[346190236,1734769876275,-1616.36,0.00020395,2]
[346190237,1734769876288,-1428.2,0.00020395,2]
[346190238,1734769876302,-601.26,0.00020395,2]
[346190239,1734769876315,-854.19,0.00020395,2]
[346190240,1734769876328,-500.0,0.00020395,2]
[346190241,1734769876341,-500.0,0.00020395,2]
[346190242,1734769876355,-500.0,0.00020395,2]
[346190243,1734769876367,-514.03,0.00020395,2]
[346190244,1734769876380,-1403.09,0.00020395,2]
[346190245,1734769876393,-208.35921,0.00020395,2]
[346190246,1734769876406,-208.35921,0.00020395,2]
[346190247,1734769876419,-1542.93,0.00020395,2]
[346190248,1734769876431,-709.92,0.00020395,2]
[346190249,1734769876445,-1934.91,0.00020395,2]
[346190250,1734769876458,-742.36,0.00020395,2]
[346190251,1734769876471,-500.0,0.00020395,2]
[346190252,1734769876484,-2451.17,0.00020395,2]
[346190253,1734769876497,-500.0,0.00020395,2]
[346190254,1734769876511,-500.0,0.00020395,2]
[346190255,1734769876527,-500.0,0.00020395,2]
[346190256,1734769876541,-825.21,0.00020395,2]
[346190257,1734769876554,-1111.89,0.00020395,2]
[346190258,1734769876566,-500.0,0.00020395,2]
[346190259,1734769876580,-1379.34,0.00020395,2]
[346190260,1734769876593,-500.0,0.00020395,2]
[346190261,1734769876606,-500.0,0.00020395,2]
[346190262,1734769876618,-4072.68,0.00020395,2]
[346190263,1734769876631,-1131.46,0.00020395,2]
[346190264,1734769876645,-4144.12,0.00020395,2]
[346190265,1734769876658,-692.41,0.00020409,2]
[346190266,1734769876671,-200.0,0.00020422,2]
[346190267,1734769876684,-200.0,0.00020422,2]
[346190268,1734769876697,-3503.71,0.00020439,2]
[346190269,1734769876710,-1024.59,0.00020439,2]
[346190270,1734769876723,-3237.21,0.00020439,2]
[346190271,1734769876736,-500.0,0.00020439,2]
[346190272,1734769876750,-1586.97,0.00020439,2]
[346190273,1734769876764,-500.0,0.0002044,2]
[346190274,1734769876780,-514.74425374,0.0002044,2]
[346190275,1734769876793,-500.0,0.0002044,2]
[346190276,1734769876807,-500.0,0.0002044,2]
[346190277,1734769876821,-500.0,0.0002044,2]
[346190278,1734769876834,-500.0,0.0002044,2]
[346190279,1734769876847,-500.0,0.0002044,2]
[346190280,1734769876860,-500.0,0.0002044,2]
[346190281,1734769876874,-500.0,0.0002044,2]
[346190282,1734769876888,-500.0,0.0002044,2]
[346190283,1734769876902,-500.0,0.0002044,2]
[346190284,1734769876917,-500.0,0.0002044,2]
[346190285,1734769876926,-500.0,0.0002044,2]
[346190286,1734769877221,-500.0,0.0002044,2]
[346190287,1734769877254,-644.05565889,0.0002044,2]
[346190288,1734769877272,-500.0,0.0002044,2]
[346190289,1734769877282,-500.0,0.0002044,2]
[346190290,1734769877291,-555.27,0.0002044,2]
[346190291,1734769877301,-500.0,0.0002044,2]
[346190292,1734769877311,-500.0,0.0002044,2]
[346190293,1734769877320,-500.0,0.0002044,2]
[346190294,1734769877330,-500.0,0.0002044,2]
[346190295,1734769877339,-500.0,0.0002044,2]
[346190296,1734769877348,-500.0,0.0002044,2]
[346190297,1734769877357,-500.0,0.0002044,2]
[346190298,1734769877367,-500.0,0.0002044,2]
[346190299,1734769877376,-500.0,0.0002044,2]
[346190300,1734769877386,-500.0,0.0002044,2]
[346190301,1734769877395,-614.79,0.0002044,2]
[346190302,1734769877404,-500.0,0.0002044,2]
[346190303,1734769877414,-500.0,0.0002044,2]
[346190304,1734769877423,-500.0,0.0002044,2]
[346190305,1734769877433,-500.0,0.0002044,2]
[346190306,1734769877442,-223.03185742,0.0002044,2]
[346190307,1734769877451,-500.0,0.0002044,2]
[346190308,1734769877460,-615.53,0.0002044,2]
[346190309,1734769877470,-500.0,0.0002044,2]
[346190310,1734769877479,-500.0,0.0002044,2]
[346190311,1734769877488,-500.0,0.0002044,2]
[346190312,1734769877498,-595.28555574,0.0002044,2]
[346190313,1734769877507,-500.0,0.0002044,2]
[346190314,1734769877517,-500.0,0.0002044,2]
[346190315,1734769877528,-500.0,0.0002044,2]
[346190316,1734769877538,-500.0,0.0002044,2]
[346190317,1734769877547,-500.0,0.0002044,2]
[346190318,1734769877556,-500.0,0.0002044,2]
[346190319,1734769877566,-500.0,0.0002044,2]
[346190320,1734769877575,-500.0,0.0002044,2]
[346190321,1734769877586,-500.0,0.0002044,2]
[346190322,1734769877597,-500.0,0.0002044,2]
[346190323,1734769877607,-500.0,0.0002044,2]
[346190324,1734769877616,-500.0,0.0002044,2]
[346190325,1734769877625,-596.19,0.0002044,2]
[346190326,1734769877635,-151.49890711,0.0002044,2]
[346190327,1734769877644,-500.0,0.0002044,2]
[346190328,1734769877654,-500.0,0.0002044,2]
[346190329,1734769877664,-500.0,0.0002044,2]
[346190330,1734769877673,-500.0,0.0002044,2]
[346190331,1734769877683,-500.0,0.0002044,2]
[346190332,1734769877693,-500.0,0.0002044,2]
[346190333,1734769877703,-500.0,0.0002044,2]
[346190334,1734769877712,-317.21737408,0.0002044,2]
[346190335,1734769877722,-500.0,0.0002044,2]
[346190336,1734769877732,-500.0,0.0002044,2]
[346190337,1734769877742,-500.0,0.0002044,2]
[346190338,1734769877752,-500.0,0.0002044,2]
[346190339,1734769877762,-500.0,0.0002044,2]
[346190340,1734769877773,-500.0,0.0002044,2]
[346190341,1734769877783,-500.0,0.0002044,2]
[346190342,1734769877793,-500.0,0.0002044,2]
[346190343,1734769877803,-500.0,0.0002044,2]
[346190344,1734769877813,-500.0,0.0002044,2]
[346190345,1734769877822,-607.08,0.0002044,2]
[346190346,1734769877832,-500.0,0.0002044,2]
[346190347,1734769877842,-500.0,0.0002044,2]
[346190348,1734769877851,-560.41,0.0002044,2]
[346190349,1734769877860,-500.0,0.0002044,2]
[346190350,1734769877870,-500.0,0.0002044,2]
[346190351,1734769877880,-500.0,0.0002044,2]
[346190352,1734769877890,-500.0,0.0002044,2]
[346190353,1734769877899,-500.0,0.0002044,2]
[346190354,1734769877909,-500.0,0.0002044,2]
[346190355,1734769877919,-247.19884228,0.0002044,2]
[346190356,1734769877928,-583.9,0.0002044,2]
[346190357,1734769877937,-500.0,0.0002044,2]
[346190358,1734769877946,-500.0,0.0002044,2]
[346190359,1734769877955,-500.0,0.0002044,2]
[346190360,1734769877965,-500.0,0.0002044,2]
[346190361,1734769877974,-500.0,0.0002044,2]
[346190362,1734769877984,-500.0,0.0002044,2]
[346190363,1734769877994,-506.55449406,0.0002044,2]
[346190364,1734769878003,-500.0,0.0002044,2]
[346190365,1734769878013,-500.0,0.0002044,2]
[346190366,1734769878024,-500.0,0.0002044,2]
[346190367,1734769878034,-500.0,0.0002044,2]
[346190368,1734769878045,-500.0,0.0002044,2]
[346190369,1734769878058,-500.0,0.0002044,2]
[346190370,1734769878068,-500.0,0.0002044,2]
[346190371,1734769878077,-500.0,0.0002044,2]
[346190372,1734769878089,-500.0,0.0002044,2]
[346190373,1734769878098,-997.17,0.0002044,2]
[346190374,1734769878108,-500.0,0.0002044,2]
[346190375,1734769878118,-500.0,0.0002044,2]
[346190376,1734769878130,-171.20183795,0.0002044,2]
[346190377,1734769878141,-500.0,0.0002044,2]
[346190378,1734769878150,-240.37749932,0.0002044,2]
[346190379,1734769878160,-500.0,0.0002044,2]
[346190380,1734769878169,-685.72,0.0002044,2]
[346190381,1734769878179,-500.0,0.0002044,2]
[346190382,1734769878188,-500.0,0.0002044,2]
[346190383,1734769878197,-500.0,0.0002044,2]
[346190384,1734769878207,-500.0,0.0002044,2]
[346190385,1734769878217,-500.0,0.0002044,2]
[346190386,1734769878226,-500.0,0.0002044,2]
[346190387,1734769878236,-706.79,0.0002044,2]
[346190388,1734769878246,-500.0,0.0002044,2]
[346190389,1734769878255,-1349.74,0.0002044,2]
[346190390,1734769878264,-1612.89,0.0002044,2]
[346190391,1734769878273,-500.0,0.0002044,2]
[346190392,1734769878282,-500.0,0.0002044,2]
[346190393,1734769878291,-2066.3,0.0002044,2]
[346190394,1734769878301,-500.0,0.0002044,2]
[346190395,1734769878311,-500.0,0.0002044,2]
[346190396,1734769878321,-500.0,0.0002044,2]
[346190397,1734769878330,-500.0,0.0002044,2]
[346190398,1734769878340,-615.9,0.0002044,2]
[346190399,1734769878349,-1184.33,0.0002044,2]
[346190400,1734769878358,-500.0,0.0002044,2]
[346190401,1734769878367,-500.0,0.0002044,2]
[346190402,1734769878376,-2103.98,0.0002044,2]
[346190403,1734769878385,-1834.81,0.0002044,2]
[346190404,1734769878394,-4676.27,0.0002044,2]
[346190405,1734769878404,-500.0,0.0002044,2]
[346190406,1734769878413,-500.0,0.0002044,2]
[346190407,1734769878423,-3208.63,0.0002044,2]
[346190408,1734769878432,-500.0,0.0002044,2]
[346190409,1734769878442,-500.0,0.0002044,2]
[346190410,1734769878451,-500.0,0.0002044,2]
[346190411,1734769878460,-500.0,0.0002044,2]
[346190412,1734769878469,-500.0,0.0002044,2]
[346190413,1734769878482,-2622.64,0.0002044,2]
[346190414,1734769878491,-729.95,0.0002044,2]
[346190415,1734769878500,-1522.05,0.0002044,2]
[346190416,1734769878509,-500.0,0.0002044,2]
[346190417,1734769878518,-500.0,0.0002044,2]
[346190418,1734769878530,-500.0,0.0002044,2]
[346190419,1734769878539,-500.0,0.0002044,2]
[346190420,1734769878548,-3025.59693338,0.0002044,10]
[346190421,1734769878558,-872.79,0.0002044,2]
[346190422,1734769878567,-500.0,0.0002044,2]
[346190423,1734769878577,-554.69,0.0002044,2]
[346190424,1734769878586,-500.0,0.0002044,2]
[346190425,1734769878595,-500.0,0.0002044,2]
[346190426,1734769878605,-1740.06,0.0002044,2]
[346190427,1734769878614,-8313.36,0.0002044,2]
[346190428,1734769878624,-500.0,0.0002044,2]
[346190429,1734769878633,-807.11,0.00020441,2]
[346190430,1734769878642,-1622.3,0.00020441,2]
[346190431,1734769878652,-2408.36,0.00020441,2]
[346190432,1734769878661,-1853.05,0.00020441,2]
[346190433,1734769878670,-599.34,0.00020441,2]
[346190434,1734769878680,-1437.49,0.00020441,2]
[346190435,1734769878689,-2962.33,0.00020441,2]
[346190436,1734769878699,-1377.35,0.00020441,2]
[346190437,1734769878708,-4029.78,0.00020441,2]
[346190438,1734769878717,-1342.55,0.00020441,2]
[346190439,1734769878727,-150.0,0.00020446,4]
[346190440,1734769878736,-150.0,0.00020446,4]
[346190441,1734769878745,-150.0,0.00020461,4]
[346190442,1734769878755,-153.0,0.00020463,2]
[346190443,1734769878765,-153.0,0.00020463,2]
[346190444,1734769878777,-153.0,0.00020463,2]
[346190445,1734769878786,-153.0,0.00020463,2]
[346190446,1734769878795,-153.0,0.00020463,2]
[346190447,1734769878805,-153.0,0.00020463,2]
[346190448,1734769878815,-388.24722119,0.000205,2]
[346190449,1734769878825,-200.0,0.00020503,2]
[346190450,1734769878835,-200.0,0.00020503,2]
[346190451,1734769878844,-500.0,0.00020521,2]
[346190452,1734769878855,-373.92977194,0.00020521,2]
[346190453,1734769878864,-1000.0,0.00020521,2]
[346190454,1734769878874,-1000.0,0.00020521,2]
[346190455,1734769878884,-1079.48,0.00020532,2]
[346190456,1734769878893,-697.163733,0.0002054,2]
[346190457,1734769878903,-2359.453679,0.0002054,2]
[346190458,1734769878913,-151.0,0.0002054,2]
[346190459,1734769878922,-151.0,0.0002054,2]
[346190460,1734769878932,-151.0,0.0002054,2]
[346190461,1734769878941,-151.0,0.0002054,2]
[346190462,1734769878950,-151.0,0.0002054,2]
[346190463,1734769878959,-500.0,0.0002054,2]
[346190464,1734769878968,-896.14,0.0002054,2]
[346190465,1734769878978,-560.27,0.0002054,2]
[346190466,1734769878987,-518.18,0.0002054,2]
[346190467,1734769878997,-500.0,0.0002054,2]
[346190468,1734769879007,-748.73,0.0002054,2]
[346190469,1734769879016,-771.79,0.0002054,2]
[346190470,1734769879028,-500.0,0.0002054,2]
[346190471,1734769879039,-1095.4,0.0002054,2]
[346190472,1734769879051,-500.0,0.0002054,2]
[346190473,1734769879060,-1543.7,0.0002054,2]
[346190474,1734769879070,-684.8,0.0002054,2]
[346190475,1734769879079,-836.87,0.0002054,2]
[346190476,1734769879089,-500.0,0.0002054,2]
[346190477,1734769879098,-500.0,0.0002054,2]
[346190478,1734769879108,-934.15,0.0002054,2]
[346190479,1734769879117,-500.0,0.0002054,2]
[346190480,1734769879129,-719.72,0.0002054,2]
[346190481,1734769879139,-506.19,0.0002054,2]
[346190482,1734769879148,-521.06,0.0002054,2]
[346190483,1734769879157,-832.43,0.0002054,2]
[346190484,1734769879166,-671.61,0.0002054,2]
[346190485,1734769879175,-653.84,0.0002054,2]
[346190486,1734769879185,-880.14,0.0002054,2]
[346190487,1734769879194,-1000.59,0.0002054,2]
[346190488,1734769879203,-1101.22,0.0002054,2]
[346190489,1734769879213,-657.85,0.0002054,2]
[346190490,1734769879222,-500.0,0.0002054,2]
[346190491,1734769879232,-774.6,0.0002054,2]
[346190492,1734769879241,-152.97961451,0.0002054,2]
[346190493,1734769879251,-500.0,0.0002054,2]
[346190494,1734769879260,-954.05,0.0002054,2]
[346190495,1734769879270,-1138.7,0.0002054,2]